fUST/lending_fUST_20240919
["ID","MTS","AMOUNT","RATE_DAILY","PERIOD"]
[338569615,1726739462202,-805.2,0.0001726,2]
[338569616,1726739462212,-1557.42,0.0001726,2]
[338569617,1726739462226,-1377.09,0.0001726,2]
[338569618,1726739462236,-500.0,0.0001726,2]
[338569619,1726739462246,-500.0,0.0001726,2]
[338569620,1726739462256,-987.91,0.0001726,2]
[338569621,1726739462266,-500.0,0.0001726,2]
[338569622,1726739462276,-500.0,0.0001726,2]
[338569623,1726739462286,-500.0,0.0001726,2]
[338569624,1726739462296,-933.28,0.0001726,2]
[338569625,1726739462306,-500.0,0.0001726,2]
[338569626,1726739462315,-964.43,0.0001726,2]
[338569627,1726739462325,-500.0,0.0001726,2]
[338569628,1726739462335,-1516.8,0.0001726,2]
[338569629,1726739462345,-1110.79,0.0001726,2]
[338569630,1726739462354,-817.72,0.0001726,2]
[338569631,1726739462364,-500.0,0.0001726,2]
[338569632,1726739462374,-2343.82,0.0001726,2]
[338569633,1726739462384,-500.88986709,0.0001726,2]
[338569634,1726739462393,-500.81551372,0.0001726,2]
[338569635,1726739462403,-500.0,0.0001726,2]
[338569636,1726739462413,-500.0,0.0001726,2]
[338569637,1726739462423,-500.0,0.0001726,2]
[338569638,1726739462432,-500.0,0.0001726,2]
[338569639,1726739462441,-500.0,0.0001726,2]
[338569640,1726739462451,-2360.1,0.0001726,2]
[338569641,1726739462461,-1731.83,0.0001726,2]
[338569642,1726739462471,-500.0,0.0001726,2]
[338569643,1726739462481,-500.0,0.0001726,2]
[338569644,1726739462490,-880.03,0.0001726,2]
[338569645,1726739462500,-500.0,0.0001726,2]
[338569646,1726739462510,-652.74,0.0001726,2]
[338569647,1726739462519,-500.0,0.0001726,2]
[338569648,1726739462530,-613.1,0.0001726,2]
[338569649,1726739462540,-500.0,0.0001726,2]
[338569650,1726739462550,-500.0,0.0001726,2]
[338569651,1726739462560,-500.0,0.0001726,2]
[338569652,1726739462570,-286.25256314,0.0001726,2]
[338569653,1726739462580,-885.45,0.0001726,2]
[338569654,1726739462590,-500.0,0.0001726,2]
[338569655,1726739462600,-1330.87,0.0001726,2]
[338569656,1726739462609,-2829.71,0.0001726,2]
[338569657,1726739462619,-1018.6,0.0001726,2]
[338569658,1726739462628,-1268.66,0.0001726,2]
[338569659,1726739462638,-500.0,0.0001726,2]
[338569660,1726739462648,-1994.98,0.0001726,2]
[338569661,1726739462657,-500.0,0.0001726,2]
[338569662,1726739462667,-1142.71,0.0001726,2]
[338569663,1726739462677,-640.01,0.0001726,2]
[338569664,1726739462687,-850.24,0.0001726,2]
[338569665,1726739462696,-500.0,0.0001726,2]
[338569666,1726739462705,-500.0,0.0001726,2]
[338569667,1726739462715,-500.0,0.0001726,2]
[338569668,1726739462725,-500.0,0.0001726,2]
[338569669,1726739462735,-588.28,0.0001726,2]
[338569670,1726739462744,-1167.6,0.0001726,2]
[338569671,1726739462754,-500.0,0.0001726,2]
[338569672,1726739462763,-500.0,0.0001726,2]
[338569673,1726739462775,-500.0,0.0001726,2]
[338569674,1726739462785,-500.0,0.0001726,2]
[338569675,1726739462795,-500.86953137,0.0001726,2]
[338569676,1726739462804,-672.92,0.0001726,2]
[338569677,1726739462814,-500.0,0.0001726,2]
[338569678,1726739462823,-500.0,0.0001726,2]
[338569679,1726739462834,-1038.41,0.0001726,2]
[338569680,1726739462843,-542.53,0.0001726,2]
[338569681,1726739462854,-646.08,0.0001726,2]
[338569682,1726739462864,-537.8,0.0001726,2]
[338569683,1726739462875,-500.0,0.0001726,2]
[338569684,1726739462886,-151.0,0.0001726,2]
[338569685,1726739462896,-151.0,0.0001726,2]
[338569686,1726739462906,-522.201644,0.0001726,2]
[338569687,1726739462916,-522.201644,0.0001726,2]
[338569688,1726739462927,-567.16,0.0001726,2]
[338569689,1726739462938,-500.0,0.0001726,2]
[338569690,1726739462948,-500.0,0.0001726,2]
[338569691,1726739462958,-652.31,0.0001726,2]
[338569692,1726739462969,-522.201644,0.0001726,2]
[338569693,1726739462979,-522.201644,0.0001726,2]
[338569694,1726739462989,-500.0,0.0001726,2]
[338569695,1726739462999,-577.86,0.0001726,2]
[338569696,1726739463009,-1396.84,0.0001726,2]
[338569697,1726739463019,-896.63,0.0001726,2]
[338569698,1726739463030,-500.0,0.0001726,2]
[338569699,1726739463040,-500.0,0.0001726,2]
[338569700,1726739463051,-500.0,0.0001726,2]
[338569701,1726739463061,-3765.86,0.0001726,2]
[338569702,1726739463072,-500.0,0.0001726,2]
[338569703,1726739463081,-500.0,0.0001726,2]
[338569704,1726739463091,-2023.52,0.0001726,2]
[338569705,1726739463102,-779.32,0.0001726,2]
[338569706,1726739463112,-500.0,0.0001726,2]
[338569707,1726739463122,-545.27,0.0001726,2]
[338569708,1726739463132,-500.0,0.0001726,2]
[338569709,1726739463142,-800.8,0.0001726,2]
[338569710,1726739463152,-797.28,0.0001726,2]
[338569711,1726739463162,-500.0,0.0001726,2]
[338569712,1726739463172,-3259.54,0.0001726,2]
[338569713,1726739463183,-500.0,0.0001726,2]
[338569714,1726739463193,-630.54,0.0001726,2]
[338569715,1726739463203,-500.0,0.0001726,2]
[338569716,1726739463213,-767.84,0.0001726,2]
[338569717,1726739463223,-500.0,0.0001726,2]
[338569718,1726739463233,-500.0,0.0001726,2]
[338569719,1726739463243,-500.0,0.0001726,2]
[338569720,1726739463253,-500.0,0.0001726,2]
[338569721,1726739463263,-746.26,0.0001726,2]
[338569722,1726739463273,-500.0,0.0001726,2]
[338569723,1726739463283,-572.72,0.0001726,2]
[338569724,1726739463293,-500.0,0.0001726,2]
[338569725,1726739463303,-500.0,0.0001726,2]
[338569726,1726739463313,-992.57,0.0001726,2]
[338569727,1726739463323,-500.0,0.0001726,2]
[338569728,1726739463334,-500.0,0.0001726,2]
[338569729,1726739463343,-500.0,0.0001726,2]
[338569730,1726739463353,-642.77973621,0.0001726,2]
[338569731,1726739463363,-500.0,0.0001726,2]
[338569732,1726739463373,-500.0,0.0001726,2]
[338569733,1726739463384,-2051.78,0.0001726,2]
[338569734,1726739463394,-920.44,0.0001726,2]
[338569735,1726739463404,-500.0,0.0001726,2]
[338569736,1726739463413,-500.0,0.0001726,2]
[338569737,1726739463423,-1192.4,0.0001726,2]
[338569738,1726739463433,-1732.35,0.0001726,2]
[338569739,1726739463443,-500.0,0.0001726,2]
[338569740,1726739463453,-500.0,0.0001726,2]
[338569741,1726739463463,-500.0,0.0001726,2]
[338569742,1726739463473,-536.74,0.0001726,2]
[338569743,1726739463483,-500.0,0.0001726,2]
[338569744,1726739463493,-2675.83,0.0001726,2]
[338569745,1726739463504,-183.327853,0.0001726,2]
[338569746,1726739463514,-183.327853,0.0001726,2]
[338569747,1726739463525,-1315.48,0.0001726,2]
[338569748,1726739463536,-183.327853,0.0001726,2]
[338569749,1726739463546,-183.327853,0.0001726,2]
[338569750,1726739463558,-756.355347,0.0001726,2]
[338569751,1726739463567,-756.355347,0.0001726,2]
[338569752,1726739463578,-500.0,0.0001726,2]
[338569753,1726739463588,-1556.85,0.0001726,2]
[338569754,1726739463598,-756.355347,0.0001726,2]
[338569755,1726739463608,-756.355347,0.0001726,2]
[338569756,1726739463618,-655.33,0.0001726,2]
[338569757,1726739463628,-500.47,0.0001726,2]
[338569758,1726739463638,-500.0,0.0001726,2]
[338569759,1726739463648,-953.98,0.0001726,2]
[338569760,1726739463657,-1056.62,0.0001726,2]
[338569761,1726739463668,-1084.53,0.0001726,2]
[338569762,1726739463678,-500.0,0.0001726,2]
[338569763,1726739463688,-500.0,0.0001726,2]
[338569764,1726739463698,-620.97,0.0001726,2]
[338569765,1726739463708,-500.0,0.0001726,2]
[338569766,1726739463718,-531.23,0.0001726,2]
[338569767,1726739463728,-2352.76,0.0001726,2]
[338569768,1726739463738,-1317.99,0.0001726,2]
[338569769,1726739463748,-492.19280841,0.0001726,2]
[338569770,1726739463758,-500.0,0.0001726,2]
[338569771,1726739463768,-500.0,0.0001726,2]
[338569772,1726739463780,-328.962833,0.0001726,2]
[338569773,1726739463789,-500.0,0.0001726,2]
[338569774,1726739463799,-328.962833,0.0001726,2]
[338569775,1726739463808,-310.56825,0.0001726,2]
[338569776,1726739463818,-310.56825,0.0001726,2]
[338569777,1726739463828,-522.58,0.0001726,2]
[338569778,1726739463838,-328.962833,0.0001726,2]
[338569779,1726739463847,-328.962833,0.0001726,2]
[338569780,1726739463858,-310.56825,0.0001726,2]
[338569781,1726739463870,-310.56825,0.0001726,2]
[338569782,1726739463880,-1575.09,0.0001726,2]
[338569783,1726739463890,-151.0,0.0001726,2]
[338569784,1726739463899,-151.0,0.0001726,2]
[338569785,1726739463908,-1117.05,0.0001726,2]
[338569786,1726739463918,-897.52,0.0001726,2]
[338569787,1726739463927,-500.0,0.0001726,2]
[338569788,1726739463937,-500.0,0.0001726,2]
[338569789,1726739463948,-889.78,0.0001726,2]
[338569790,1726739463958,-959.5,0.0001726,2]
[338569791,1726739463968,-1241.74,0.0001726,2]
[338569792,1726739463978,-696.32,0.0001726,2]
[338569793,1726739463989,-1465.29,0.0001726,2]
[338569794,1726739463998,-923.25,0.0001726,2]
[338569795,1726739464008,-500.0,0.0001726,2]
[338569796,1726739464017,-925.757886,0.0001726,2]
[338569797,1726739464028,-925.757886,0.0001726,2]
[338569798,1726739464038,-500.0,0.0001726,2]
[338569799,1726739464047,-346.92,0.0001726,2]
[338569800,1726739464058,-500.0,0.0001726,2]
[338569801,1726739464068,-925.757886,0.0001726,2]
[338569802,1726739464077,-925.757886,0.0001726,2]
[338569803,1726739464087,-243.17,0.0001726,2]
[338569804,1726739464096,-500.0,0.0001726,2]
[338569805,1726739464106,-515.04,0.0001726,2]
[338569806,1726739464117,-972.51,0.0001726,2]
[338569807,1726739464127,-500.0,0.0001726,2]
[338569808,1726739464136,-2399.671957,0.0001726,2]
[338569809,1726739464146,-2399.671957,0.0001726,2]
[338569810,1726739464156,-1065.94,0.0001726,2]
[338569811,1726739464166,-500.0,0.0001726,2]
[338569812,1726739464176,-694.42,0.0001726,2]
[338569813,1726739464261,-500.0,0.0001726,2]
[338569814,1726739464272,-777.38,0.0001726,2]
[338569815,1726739464282,-500.0,0.0001726,2]
[338569816,1726739464292,-500.0,0.0001726,2]
[338569817,1726739464301,-500.229989,0.0001726,2]
[338569818,1726739464311,-500.229989,0.0001726,2]
[338569819,1726739464322,-500.229989,0.0001726,2]
[338569820,1726739464332,-962.98,0.0001726,2]
[338569821,1726739464342,-500.0,0.0001726,2]
[338569822,1726739464352,-500.0,0.0001726,2]
[338569823,1726739464362,-500.0,0.0001726,2]
[338569824,1726739464372,-500.0,0.0001726,2]
[338569825,1726739464386,-2156.7,0.0001726,2]
[338569826,1726739464396,-500.229989,0.0001726,2]
[338569827,1726739464406,-709.43,0.0001726,2]
[338569828,1726739464415,-500.229989,0.0001726,2]
[338569829,1726739464425,-500.229989,0.0001726,2]
[338569830,1726739464434,-1459.536,0.0001726,2]
[338569831,1726739464444,-1459.536,0.0001726,2]
[338569832,1726739464455,-1459.536,0.0001726,2]
[338569833,1726739464465,-500.0,0.0001726,2]
[338569834,1726739464475,-1459.536,0.0001726,2]
[338569835,1726739464485,-1459.536,0.0001726,2]
[338569836,1726739464495,-1459.536,0.0001726,2]
[338569837,1726739464504,-500.0,0.0001726,2]
[338569838,1726739464514,-518.83,0.0001726,2]
[338569839,1726739464524,-1978.31,0.0001726,2]
[338569840,1726739464534,-500.0,0.0001726,2]
[338569841,1726739464544,-484.69231632,0.0001726,2]
[338569842,1726739464554,-511.26,0.0001726,2]
[338569843,1726739464563,-500.0,0.0001726,2]
[338569844,1726739464573,-500.0,0.0001726,2]
[338569845,1726739464582,-843.87,0.0001726,2]
[338569846,1726739464592,-500.0,0.0001726,2]
[338569847,1726739464601,-500.0,0.0001726,2]
[338569848,1726739464611,-500.0,0.0001726,2]
[338569849,1726739464621,-918.24,0.0001726,2]
[338569850,1726739464630,-988.49,0.0001726,2]
[338569851,1726739464640,-500.0,0.0001726,2]
[338569852,1726739464649,-500.0,0.0001726,2]
[338569853,1726739464658,-382.7023557,0.0001726,2]
[338569854,1726739464667,-500.0,0.0001726,2]
[338569855,1726739464677,-500.0,0.0001726,2]
[338569856,1726739464686,-547.84,0.0001726,2]
[338569857,1726739464696,-1684.19,0.0001726,2]
[338569858,1726739464705,-1226.99,0.0001726,2]
[338569859,1726739464714,-522.15641144,0.0001726,2]
[338569860,1726739464724,-619.37,0.0001726,2]
[338569861,1726739464734,-500.0,0.0001726,2]
[338569862,1726739464743,-500.0,0.0001726,2]
[338569863,1726739464753,-793.11,0.0001726,2]
[338569864,1726739464762,-500.0,0.0001726,2]
[338569865,1726739464772,-500.0,0.0001726,2]
[338569866,1726739464782,-4080.95,0.0001726,2]
[338569867,1726739464792,-1533.79,0.0001726,2]
[338569868,1726739464801,-500.0,0.0001726,2]
[338569869,1726739464811,-500.0,0.0001726,2]
[338569870,1726739464820,-500.0,0.0001726,2]
[338569871,1726739464830,-500.0,0.0001726,2]
[338569872,1726739464839,-833.33,0.0001726,2]
[338569873,1726739464848,-500.0,0.0001726,2]
[338569874,1726739464858,-500.0,0.0001726,2]
[338569875,1726739464870,-532.79,0.0001726,2]
[338569876,1726739464879,-992.43,0.0001726,2]
[338569877,1726739464889,-724.2,0.0001726,2]
[338569878,1726739464899,-500.0,0.0001726,2]
[338569879,1726739464909,-500.0,0.0001726,2]
[338569880,1726739464919,-434.420631,0.0001726,2]
[338569881,1726739464929,-500.69066583,0.0001726,2]
[338569882,1726739464938,-434.420631,0.0001726,2]
[338569883,1726739464948,-434.420631,0.0001726,2]
[338569884,1726739464959,-500.0,0.0001726,2]
[338569885,1726739464969,-500.0,0.0001726,2]
[338569886,1726739464978,-332.739636,0.0001726,2]
[338569887,1726739464988,-500.0,0.0001726,2]
[338569888,1726739464997,-220.42734356,0.0001726,2]
[338569889,1726739465007,-332.739636,0.0001726,2]
[338569890,1726739465017,-153.278653,0.0001726,2]
[338569891,1726739465027,-332.739636,0.0001726,2]
[338569892,1726739465037,-500.0,0.0001726,2]
[338569893,1726739465046,-434.420631,0.0001726,2]
[338569894,1726739465056,-434.420631,0.0001726,2]
[338569895,1726739465065,-434.420631,0.0001726,2]
[338569896,1726739465075,-500.0,0.0001726,2]
[338569897,1726739465084,-913.85,0.0001726,2]
[338569898,1726739465093,-332.739636,0.0001726,2]
[338569899,1726739465103,-500.0,0.0001726,2]
[338569900,1726739465112,-332.739636,0.0001726,2]
[338569901,1726739465123,-332.739631,0.0001726,2]
[338569902,1726739465132,-500.0,0.0001726,2]
[338569903,1726739465142,-500.0,0.0001726,2]
[338569904,1726739465151,-500.0,0.0001726,2]
[338569905,1726739465161,-641.4,0.0001726,2]
[338569906,1726739465170,-500.0,0.0001726,2]
[338569907,1726739465180,-151.0,0.0001726,2]
[338569908,1726739465189,-500.0,0.0001726,2]
[338569909,1726739465199,-833.47,0.0001726,2]
[338569910,1726739465209,-758.99,0.0001726,2]
[338569911,1726739465219,-500.0,0.0001726,2]
[338569912,1726739465229,-660.92,0.0001726,2]
[338569913,1726739465239,-500.0,0.0001726,2]
[338569914,1726739465249,-500.0,0.0001726,2]
[338569915,1726739465259,-253.30135215,0.0001726,2]
[338569916,1726739465268,-644.71668647,0.0001726,2]
[338569917,1726739465280,-555.01,0.0001726,2]
[338569918,1726739465291,-500.0,0.0001726,2]
[338569919,1726739465300,-500.0,0.0001726,2]
[338569920,1726739465310,-993.05,0.0001726,2]
[338569921,1726739465319,-565.95713077,0.0001726,2]
[338569922,1726739465329,-500.0,0.0001726,2]
[338569923,1726739465338,-610.59,0.0001726,2]
[338569924,1726739465349,-1552.609418,0.0001726,2]
[338569925,1726739465360,-212.743537,0.0001726,2]
[338569926,1726739465370,-1552.609418,0.0001726,2]
[338569927,1726739465381,-212.743537,0.0001726,2]
[338569928,1726739465391,-1552.609418,0.0001726,2]
[338569929,1726739465401,-212.743537,0.0001726,2]
[338569930,1726739465411,-500.0,0.0001726,2]
[338569931,1726739465421,-500.0,0.0001726,2]
[338569932,1726739465431,-1552.609418,0.0001726,2]
[338569933,1726739465442,-1552.609418,0.0001726,2]
[338569934,1726739465452,-1552.609428,0.0001726,2]
[338569935,1726739465461,-733.61,0.0001726,2]
[338569936,1726739465471,-212.743537,0.0001726,2]
[338569937,1726739465481,-558.17,0.0001726,2]
[338569938,1726739465492,-212.743537,0.0001726,2]
[338569939,1726739465502,-500.0,0.0001726,2]
[338569940,1726739465512,-212.743537,0.0001726,2]
[338569941,1726739465522,-500.0,0.0001726,2]
[338569942,1726739465540,-1052.65,0.0001726,2]
[338569943,1726739465550,-1871.05,0.0001726,2]
[338569944,1726739465560,-581.21,0.0001726,2]
[338569945,1726739465571,-905.66,0.0001726,2]
[338569946,1726739465581,-657.458498,0.0001726,2]
[338569947,1726739465591,-657.458498,0.0001726,2]
[338569948,1726739465602,-657.458498,0.0001726,2]
[338569949,1726739465611,-1331.576687,0.0001726,2]
[338569950,1726739465622,-1331.576687,0.0001726,2]
[338569951,1726739465632,-1331.576687,0.0001726,2]
[338569952,1726739465642,-1331.576687,0.0001726,2]
[338569953,1726739465652,-657.458498,0.0001726,2]
[338569954,1726739465662,-1331.576687,0.0001726,2]
[338569955,1726739465672,-657.458498,0.0001726,2]
[338569956,1726739465682,-1331.576695,0.0001726,2]
[338569957,1726739465692,-500.0,0.0001726,2]
[338569958,1726739465706,-657.458499,0.0001726,2]
[338569959,1726739465716,-500.0,0.0001726,2]
[338569960,1726739465726,-500.0,0.0001726,2]
[338569961,1726739465736,-1793.92,0.0001726,2]
[338569962,1726739465746,-500.0,0.0001726,2]
[338569963,1726739465756,-500.0,0.0001726,2]
[338569964,1726739465766,-545.29,0.0001726,2]
[338569965,1726739465778,-500.0,0.0001726,2]
[338569966,1726739465788,-596.48,0.0001726,2]
[338569967,1726739465797,-500.0,0.0001726,2]
[338569968,1726739465806,-500.0,0.0001726,2]
[338569969,1726739465816,-917.15,0.0001726,2]
[338569970,1726739465826,-500.0,0.0001726,2]
[338569971,1726739465835,-151.0,0.0001726,2]
[338569972,1726739465845,-151.0,0.0001726,2]
[338569973,1726739465854,-151.0,0.0001726,2]
[338569974,1726739465864,-949.34,0.0001726,2]
[338569975,1726739465876,-500.0,0.0001726,2]
[338569976,1726739465886,-500.0,0.0001726,2]
[338569977,1726739465897,-500.0,0.0001726,2]
[338569978,1726739465907,-500.0,0.0001726,2]
[338569979,1726739465917,-500.0,0.0001726,2]
[338569980,1726739465926,-500.0,0.0001726,2]
[338569981,1726739465937,-604.47,0.0001726,2]
[338569982,1726739465947,-768.54,0.0001726,2]
[338569983,1726739465957,-514.48,0.0001726,2]
[338569984,1726739465966,-500.0,0.0001726,2]
[338569985,1726739465976,-992.26,0.0001726,2]
[338569986,1726739465986,-1506.86,0.0001726,2]
[338569987,1726739465996,-500.0,0.0001726,2]
[338569988,1726739466007,-500.0,0.0001726,2]
[338569989,1726739466017,-165.51306,0.0001726,2]
[338569990,1726739466029,-500.0,0.0001726,2]
[338569991,1726739466039,-378.638792,0.0001726,2]
[338569992,1726739466048,-165.51306,0.0001726,2]
[338569993,1726739466058,-56270.92,0.0001726,2]
[338569994,1726739466068,-378.638792,0.0001726,2]
[338569995,1726739466078,-378.638792,0.0001726,2]
[338569996,1726739466088,-165.51306,0.0001726,2]
[338569997,1726739466098,-500.0,0.0001726,2]
[338569998,1726739466108,-774.05,0.0001726,2]
[338569999,1726739466117,-165.51306,0.0001726,2]
[338570000,1726739466127,-165.51306,0.0001726,2]
[338570001,1726739466137,-165.513058,0.0001726,2]
[338570002,1726739466146,-378.638792,0.0001726,2]
[338570003,1726739466156,-378.638792,0.0001726,2]
[338570004,1726739466166,-378.638799,0.0001726,2]
[338570005,1726739466175,-500.0,0.0001726,2]
[338570006,1726739466185,-500.0,0.0001726,2]
[338570007,1726739466195,-860.84,0.0001726,2]
[338570008,1726739466204,-9503.67,0.0001726,2]
[338570009,1726739466214,-500.0,0.0001726,2]
[338570010,1726739466223,-500.0,0.0001726,2]
[338570011,1726739466233,-500.0,0.0001726,2]
[338570012,1726739466244,-923.52,0.0001726,2]
[338570013,1726739466254,-648.14497081,0.0001726,2]
[338570014,1726739466264,-1671.42,0.0001726,2]
[338570015,1726739466275,-1088.58,0.0001726,2]
[338570016,1726739466285,-500.0,0.0001726,2]
[338570017,1726739466295,-500.0,0.0001726,2]
[338570018,1726739466305,-198.901006,0.0001726,2]
[338570019,1726739466315,-198.901006,0.0001726,2]
[338570020,1726739466324,-500.0,0.0001726,2]
[338570021,1726739466334,-198.901006,0.0001726,2]
[338570022,1726739466344,-500.0,0.0001726,2]
[338570023,1726739466354,-198.901006,0.0001726,2]
[338570024,1726739466363,-540.71,0.0001726,2]
[338570025,1726739466372,-198.901006,0.0001726,2]
[338570026,1726739466382,-198.901004,0.0001726,2]
[338570027,1726739466392,-438.00006726,0.0001726,2]
[338570028,1726739466403,-150.0,0.00017273,2]
[338570029,1726739466412,-501.05784197,0.00017381,2]
[338570030,1726739466422,-151.0,0.00017524,2]
[338570031,1726739466431,-151.0,0.00017524,2]
[338570032,1726739466440,-151.0,0.00017524,2]
[338570033,1726739466450,-151.0,0.00017524,2]
[338570034,1726739466460,-151.0,0.00017524,2]
[338570035,1726739466469,-153.943558,0.00017524,2]
[338570036,1726739466479,-151.0,0.00017524,2]
[338570037,1726739466489,-151.0,0.00017524,2]
[338570038,1726739466498,-402.403334,0.00017524,2]
[338570039,1726739466508,-402.403334,0.00017524,2]
[338570040,1726739466518,-541.83,0.00017534,2]
[338570041,1726739466528,-500.0,0.00017534,2]
[338570042,1726739466543,-276.526682,0.00017534,2]
[338570043,1726739466553,-500.0,0.00017534,2]
[338570044,1726739466563,-1773.07,0.00017534,2]
[338570045,1726739466573,-180.882616,0.00017534,2]
[338570046,1726739466582,-1253.16,0.00017534,2]
[338570047,1726739466592,-180.882616,0.00017534,2]
[338570048,1726739466601,-277.859428,0.00017534,2]
[338570049,1726739466611,-632.05933359,0.00017534,2]
[338570050,1726739466621,-523.46,0.00017534,2]
[338570051,1726739466630,-1725.68,0.00017534,2]
[338570052,1726739466640,-500.0,0.00017534,2]
[338570053,1726739466649,-500.0,0.00017534,2]
[338570054,1726739466659,-500.0,0.00017534,2]
[338570055,1726739466669,-609.63575978,0.00017534,2]
[338570056,1726739466679,-514.55,0.00017534,2]
[338570057,1726739466688,-500.0,0.00017534,2]
[338570058,1726739466698,-500.0,0.00017534,2]
[338570059,1726739466707,-500.0,0.00017534,2]
[338570060,1726739466716,-500.0,0.00017534,2]
[338570061,1726739466726,-500.0,0.00017534,2]
[338570062,1726739466735,-500.0,0.00017534,2]
[338570063,1726739466745,-1917.23,0.00017534,2]
[338570064,1726739466755,-500.0,0.00017534,2]
[338570065,1726739466765,-1813.82,0.00017534,2]
[338570066,1726739466774,-501.41507322,0.00017534,2]
[338570067,1726739466789,-500.0,0.00017534,2]
[338570068,1726739466799,-758.63,0.00017534,2]
[338570069,1726739466808,-876.05,0.00017534,2]
[338570070,1726739466817,-870.3,0.00017534,2]
[338570071,1726739466826,-500.0,0.00017534,2]
[338570072,1726739466835,-500.0,0.00017534,2]
[338570073,1726739466845,-1014.89,0.00017534,2]
[338570074,1726739466854,-500.0,0.00017534,2]
[338570075,1726739466864,-500.62213065,0.00017534,2]
[338570076,1726739466876,-508.5,0.00017534,2]
[338570077,1726739466885,-995.15,0.00017534,2]
[338570078,1726739466895,-972.67,0.00017534,2]
[338570079,1726739466904,-500.0,0.00017534,2]
[338570080,1726739466914,-151.0,0.00017534,2]
[338570081,1726739466924,-1109.51,0.00017534,2]
[338570082,1726739466933,-500.0,0.00017534,2]
[338570083,1726739466943,-500.0,0.00017534,2]
[338570084,1726739466953,-476.17986923,0.00017534,2]
[338570085,1726739466962,-946.29,0.00017534,2]
[338570086,1726739466972,-443.07168323,0.00017534,2]
[338570087,1726739466981,-1004.81,0.00017534,2]
[338570088,1726739466991,-500.0,0.00017534,2]
[338570089,1726739467000,-766.47,0.00017534,2]
[338570090,1726739467010,-500.0,0.00017534,2]
[338570091,1726739467019,-564.43,0.00017534,2]
[338570092,1726739467034,-926.76,0.00017534,2]
[338570093,1726739467043,-774.6,0.00017534,2]
[338570094,1726739467052,-500.0,0.00017534,2]
[338570095,1726739467062,-402.403334,0.00017534,2]
[338570096,1726739467071,-500.0,0.00017534,2]
[338570097,1726739467081,-402.403334,0.00017534,2]
[338570098,1726739467091,-549.51,0.00017534,2]
[338570099,1726739467100,-500.76,0.00017534,2]
[338570100,1726739467110,-715.82,0.00017534,2]
[338570101,1726739467119,-500.0,0.00017534,2]
[338570102,1726739467128,-500.0,0.00017534,2]
[338570103,1726739467138,-522.04700639,0.00017534,2]
[338570104,1726739467148,-462.56920989,0.00017534,2]
[338570105,1726739467158,-500.0,0.00017534,2]
[338570106,1726739467167,-500.0,0.00017534,2]
[338570107,1726739467176,-151.0,0.00017534,2]
[338570108,1726739467186,-151.0,0.00017534,2]
[338570109,1726739467195,-500.0,0.00017534,2]
[338570110,1726739467204,-550.19737991,0.00017534,2]
[338570111,1726739467214,-500.0,0.00017534,2]
[338570112,1726739467223,-1631.8,0.00017534,2]
[338570113,1726739467232,-1069.83,0.00017534,2]
[338570114,1726739467241,-500.0,0.00017534,2]